[Event "Late-Titled-Tuesday-Blitz-February-13-2024"]
[Site "Chess.com"]
[Date "2024.02.13"]
[Round "2"]
[White "chessisveryfun1264"]
[Black "mitrabhaa"]
[Result "1/2-1/2"]
[WhiteElo "2582"]
[BlackElo "2896"]
[TimeControl "180+1"]
[EndTime "14:19:05 PST"]
[Termination "Game drawn by repetition"]

1. e4 {[%clk 0:03:00.9]} 1... c6 {[%clk 0:02:55.4]} 2. d4 {[%clk 0:03:00.5]}
2... d5 {[%clk 0:02:50.7]} 3. exd5 {[%clk 0:03:01.4]} 3... cxd5 {[%clk
0:02:49.8]} 4. Bf4 {[%clk 0:03:02.3]} 4... Nf6 {[%clk 0:02:49.7]} 5. c3 {[%clk
0:03:01.1]} 5... Nc6 {[%clk 0:02:50.1]} 6. Nf3 {[%clk 0:03:01.3]} 6... Bg4
{[%clk 0:02:50]} 7. Nbd2 {[%clk 0:03:01.8]} 7... e6 {[%clk 0:02:50.2]} 8. Bd3
{[%clk 0:03:00.7]} 8... Bd6 {[%clk 0:02:50]} 9. Bxd6 {[%clk 0:02:57.9]} 9...
Qxd6 {[%clk 0:02:50.9]} 10. h3 {[%clk 0:02:56.4]} 10... Bh5 {[%clk 0:02:46.2]}
11. O-O {[%clk 0:02:55.9]} 11... O-O {[%clk 0:02:45.7]} 12. Qe2 {[%clk
0:02:55.5]} 12... Rab8 {[%clk 0:02:44.6]} 13. a4 {[%clk 0:02:55.8]} 13... a6
{[%clk 0:02:44.3]} 14. g4 {[%clk 0:02:51.8]} 14... Bg6 {[%clk 0:02:43.7]} 15.
Bxg6 {[%clk 0:02:52.5]} 15... hxg6 {[%clk 0:02:44.6]} 16. Qe3 {[%clk 0:02:48.2]}
16... b5 {[%clk 0:02:40.9]} 17. axb5 {[%clk 0:02:45.2]} 17... axb5 {[%clk
0:02:41.8]} 18. Ra6 {[%clk 0:02:35.1]} 18... Qc7 {[%clk 0:02:39.8]} 19. Rfa1
{[%clk 0:02:33.1]} 19... b4 {[%clk 0:02:37.6]} 20. Nb3 {[%clk 0:02:23.5]} 20...
Ne4 {[%clk 0:02:31.9]} 21. Nfd2 {[%clk 0:02:12.4]} 21... Nxd2 {[%clk 0:02:22.2]}
22. Nxd2 {[%clk 0:02:11.9]} 22... bxc3 {[%clk 0:02:21.1]} 23. Qxc3 {[%clk
0:02:00.2]} 23... Rfc8 {[%clk 0:02:14.9]} 24. Rc1 {[%clk 0:01:55.6]} 24... Rb6
{[%clk 0:02:12.2]} 25. Rxb6 {[%clk 0:01:33.9]} 25... Qxb6 {[%clk 0:02:13.1]} 26.
Nb3 {[%clk 0:01:33.9]} 26... Rb8 {[%clk 0:02:01.2]} 27. Nc5 {[%clk 0:01:18.4]}
27... Qxb2 {[%clk 0:01:11.5]} 28. Nxe6 {[%clk 0:01:13.3]} 28... Ne7 {[%clk
0:00:49]} 29. Qxb2 {[%clk 0:01:02.8]} 29... Rxb2 {[%clk 0:00:48.1]} 30. Rc7
{[%clk 0:01:03.4]} 30... fxe6 {[%clk 0:00:32.9]} 31. Rxe7 {[%clk 0:01:03.1]}
31... Rb6 {[%clk 0:00:33.6]} 32. Kg2 {[%clk 0:01:01.1]} 32... Kf8 {[%clk
0:00:33.4]} 33. Ra7 {[%clk 0:00:55.5]} 33... Rb4 {[%clk 0:00:33.3]} 34. g5
{[%clk 0:00:51.9]} 34... Rxd4 {[%clk 0:00:32.5]} 35. Ra8+ {[%clk 0:00:52.4]}
35... Kf7 {[%clk 0:00:31.9]} 36. Ra7+ {[%clk 0:00:53.3]} 36... Kg8 {[%clk
0:00:29]} 37. Re7 {[%clk 0:00:44.6]} 37... Re4 {[%clk 0:00:28.9]} 38. f3 {[%clk
0:00:44.2]} 38... Re5 {[%clk 0:00:28.7]} 39. h4 {[%clk 0:00:44.6]} 39... Kf8
{[%clk 0:00:27.1]} 40. Rd7 {[%clk 0:00:43.7]} 40... d4 {[%clk 0:00:27.5]} 41.
Rxd4 {[%clk 0:00:43.1]} 41... Ke7 {[%clk 0:00:27.7]} 42. Ra4 {[%clk 0:00:42]}
42... Rd5 {[%clk 0:00:27.6]} 43. Ra7+ {[%clk 0:00:42.3]} 43... Rd7 {[%clk
0:00:27.8]} 44. Ra4 {[%clk 0:00:41.1]} 44... Kd6 {[%clk 0:00:27.8]} 45. Kg3
{[%clk 0:00:41]} 45... Ke5 {[%clk 0:00:27.7]} 46. Ra5+ {[%clk 0:00:40.9]} 46...
Kd4 {[%clk 0:00:26.4]} 47. Ra6 {[%clk 0:00:41.5]} 47... e5 {[%clk 0:00:24.2]}
48. Rxg6 {[%clk 0:00:40.9]} 48... e4 {[%clk 0:00:18.8]} 49. Re6 {[%clk
0:00:34.7]} 49... exf3 {[%clk 0:00:18.4]} 50. Kxf3 {[%clk 0:00:35.6]} 50... Kd5
{[%clk 0:00:19]} 51. Re8 {[%clk 0:00:35.2]} 51... g6 {[%clk 0:00:15]} 52. Kg4
{[%clk 0:00:34.2]} 52... Rg7 {[%clk 0:00:15.3]} 53. h5 {[%clk 0:00:33.1]} 53...
gxh5+ {[%clk 0:00:11.7]} 54. Kxh5 {[%clk 0:00:33.3]} 54... Rh7+ {[%clk
0:00:11.3]} 55. Kg6 {[%clk 0:00:30.4]} 55... Rh1 {[%clk 0:00:11.3]} 56. Kg7
{[%clk 0:00:30.2]} 56... Kd6 {[%clk 0:00:11.6]} 57. g6 {[%clk 0:00:30.6]} 57...
Kd7 {[%clk 0:00:12]} 58. Re5 {[%clk 0:00:30.2]} 58... Kd6 {[%clk 0:00:11.7]} 59.
Re2 {[%clk 0:00:28.9]} 59... Ra1 {[%clk 0:00:10.7]} 60. Kh7 {[%clk 0:00:27.6]}
60... Rh1+ {[%clk 0:00:10.1]} 61. Kg8 {[%clk 0:00:28]} 61... Kd7 {[%clk
0:00:10.8]} 62. g7 {[%clk 0:00:28.5]} 62... Rh3 {[%clk 0:00:11.2]} 63. Re4
{[%clk 0:00:25.5]} 63... Kd6 {[%clk 0:00:09.9]} 64. Kf7 {[%clk 0:00:22.1]} 64...
Rf3+ {[%clk 0:00:07.6]} 65. Kg6 {[%clk 0:00:21.8]} 65... Rg3+ {[%clk 0:00:08.2]}
66. Kf7 {[%clk 0:00:20.4]} 66... Rf3+ {[%clk 0:00:07.9]} 67. Kg8 {[%clk
0:00:21]} 67... Rg3 {[%clk 0:00:06.8]} 68. Rf4 {[%clk 0:00:19.2]} 68... Ke7
{[%clk 0:00:06.2]} 69. Rf5 {[%clk 0:00:19]} 69... Rh3 {[%clk 0:00:05.8]} 70.
Re5+ {[%clk 0:00:18.2]} 70... Kf6 {[%clk 0:00:04.8]} 71. Re1 {[%clk 0:00:18.8]}
71... Ra3 {[%clk 0:00:03.7]} 72. Rf1+ {[%clk 0:00:19.2]} 72... Kg6 {[%clk
0:00:04.2]} 73. Rg1+ {[%clk 0:00:18.3]} 73... Kf6 {[%clk 0:00:04.7]} 74. Rf1+
{[%clk 0:00:17.5]} 74... Kg6 {[%clk 0:00:04.8]} 75. Rg1+ {[%clk 0:00:12.2]}
75... Kf6 {[%clk 0:00:04.6]} 76. Rf1+ {[%clk 0:00:10]} 1/2-1/2

[Event "Late-Titled-Tuesday-Blitz-February-13-2024"]
[Site "Chess.com"]
[Date "2024.02.13"]
[Round "2"]
[White "hristos03"]
[Black "KarolKacprzak"]
[Result "0-1"]
[WhiteElo "2385"]
[BlackElo "2723"]
[TimeControl "180+1"]
[EndTime "14:19:10 PST"]
[Termination "KarolKacprzak won on time"]

1. e4 {[%clk 0:03:00.5]} 1... c5 {[%clk 0:02:53.9]} 2. Nf3 {[%clk 0:02:57.1]}
2... d6 {[%clk 0:02:54.5]} 3. d4 {[%clk 0:02:56.6]} 3... cxd4 {[%clk 0:02:55.4]}
4. Nxd4 {[%clk 0:02:57.3]} 4... Nf6 {[%clk 0:02:56]} 5. Nc3 {[%clk 0:02:57.6]}
5... a6 {[%clk 0:02:56.6]} 6. Bc4 {[%clk 0:02:56.4]} 6... e6 {[%clk 0:02:56.3]}
7. Bb3 {[%clk 0:02:56.5]} 7... Nbd7 {[%clk 0:02:49.1]} 8. f4 {[%clk 0:02:50.5]}
8... Nc5 {[%clk 0:02:48.9]} 9. O-O {[%clk 0:02:50.3]} 9... Qc7 {[%clk
0:02:35.1]} 10. Qf3 {[%clk 0:02:42.3]} 10... b5 {[%clk 0:02:31.8]} 11. f5 {[%clk
0:02:21.1]} 11... e5 {[%clk 0:02:27.2]} 12. Nde2 {[%clk 0:02:16]} 12... Bb7
{[%clk 0:02:25.6]} 13. Ng3 {[%clk 0:02:11.6]} 13... Nxb3 {[%clk 0:02:03.8]} 14.
axb3 {[%clk 0:02:07.5]} 14... b4 {[%clk 0:02:04.3]} 15. Na4 {[%clk 0:01:56.1]}
15... d5 {[%clk 0:01:59.4]} 16. exd5 {[%clk 0:01:45.4]} 16... Bxd5 {[%clk
0:02:00.3]} 17. Qe2 {[%clk 0:01:37.4]} 17... Be7 {[%clk 0:01:49.3]} 18. Bg5
{[%clk 0:01:37]} 18... O-O {[%clk 0:01:36.2]} 19. Bxf6 {[%clk 0:01:35.7]} 19...
Bxf6 {[%clk 0:01:34.3]} 20. Nh5 {[%clk 0:01:34.5]} 20... Bg5 {[%clk 0:01:19.3]}
21. h4 {[%clk 0:01:26.3]} 21... Bh6 {[%clk 0:01:09.3]} 22. Rae1 {[%clk
0:01:02.7]} 22... f6 {[%clk 0:01:04]} 23. Ng3 {[%clk 0:00:44.9]} 23... Rac8
{[%clk 0:00:55.6]} 24. Rf2 {[%clk 0:00:40.4]} 24... Qa7 {[%clk 0:00:36]} 25. Kf1
{[%clk 0:00:30.4]} 25... Rfd8 {[%clk 0:00:34.6]} 26. Rd1 {[%clk 0:00:18.7]}
26... Bf4 {[%clk 0:00:31.9]} 27. Nh5 {[%clk 0:00:15.7]} 27... Bh6 {[%clk
0:00:27.3]} 28. Qg4 {[%clk 0:00:11.7]} 28... Kh8 {[%clk 0:00:23.8]} 29. Re1
{[%clk 0:00:07.4]} 29... a5 {[%clk 0:00:21.6]} 30. Rfe2 {[%clk 0:00:06]} 30...
Qa6 {[%clk 0:00:17.6]} 31. Kg1 {[%clk 0:00:05.9]} 31... e4 {[%clk 0:00:15.8]}
32. Kh1 {[%clk 0:00:06]} 32... Qd6 {[%clk 0:00:15.5]} 33. Ng3 {[%clk 0:00:05.5]}
33... Qf4 {[%clk 0:00:10.2]} 34. Qxf4 {[%clk 0:00:05.1]} 34... Bxf4 {[%clk
0:00:11.1]} 35. Nxe4 {[%clk 0:00:05.7]} 35... Be5 {[%clk 0:00:11]} 36. Nb6
{[%clk 0:00:04.7]} 36... Rb8 {[%clk 0:00:06.7]} 37. Nxd5 {[%clk 0:00:04.7]}
37... Rxd5 {[%clk 0:00:07.6]} 38. Nd2 {[%clk 0:00:02.4]} 38... h5 {[%clk
0:00:04.5]} 39. Nc4 {[%clk 0:00:02.5]} 39... Bg3 {[%clk 0:00:04.8]} 40. Re8+
{[%clk 0:00:02]} 40... Rxe8 {[%clk 0:00:05.4]} 41. Rxe8+ {[%clk 0:00:02.6]}
41... Kh7 {[%clk 0:00:06.3]} 42. Ne3 {[%clk 0:00:02.4]} 42... Rd2 {[%clk
0:00:05.1]} 43. Nf1 {[%clk 0:00:02.7]} 43... Rd1 {[%clk 0:00:04.3]} 44. Kg1
{[%clk 0:00:03.2]} 44... Bxh4 {[%clk 0:00:05]} 45. Re4 {[%clk 0:00:02.1]} 45...
Bg5 {[%clk 0:00:05.4]} 46. Rc4 {[%clk 0:00:02.1]} 46... Rb1 {[%clk 0:00:05.7]}
47. Kf2 {[%clk 0:00:02.3]} 47... Rxb2 {[%clk 0:00:06]} 48. Rc5 {[%clk
0:00:02.9]} 48... Rb1 {[%clk 0:00:06]} 49. Ng3 {[%clk 0:00:03.3]} 49... Bh4
{[%clk 0:00:05.2]} 50. Kf3 {[%clk 0:00:03.3]} 50... Bg5 {[%clk 0:00:04.6]} 51.
Ne4 {[%clk 0:00:03.5]} 51... Rf1+ {[%clk 0:00:05.1]} 52. Kg3 {[%clk 0:00:03.7]}
52... Rd1 {[%clk 0:00:05]} 53. Nxg5+ {[%clk 0:00:03.3]} 53... fxg5 {[%clk
0:00:05.9]} 54. Rxa5 {[%clk 0:00:03.4]} 54... Rc1 {[%clk 0:00:05.2]} 55. Rb5
{[%clk 0:00:03.7]} 55... Rxc2 {[%clk 0:00:04.9]} 56. Rxb4 {[%clk 0:00:04.2]}
56... Rc3+ {[%clk 0:00:05.8]} 57. Kh2 {[%clk 0:00:03.9]} 57... g4 {[%clk
0:00:06.2]} 58. Rb5 {[%clk 0:00:04.1]} 58... Kh6 {[%clk 0:00:06.5]} 59. Rb6+
{[%clk 0:00:03.4]} 59... Kg5 {[%clk 0:00:06.8]} 60. Rg6+ {[%clk 0:00:04.2]}
60... Kxf5 {[%clk 0:00:07.3]} 61. Rxg7 {[%clk 0:00:05.1]} 61... Rxb3 {[%clk
0:00:08]} 62. Rh7 {[%clk 0:00:05.5]} 62... Kg6 {[%clk 0:00:08.4]} 63. Rh8 {[%clk
0:00:05.9]} 63... Kg5 {[%clk 0:00:09.3]} 64. Rg8+ {[%clk 0:00:06.3]} 64... Kh4
{[%clk 0:00:09.4]} 65. Rf8 {[%clk 0:00:03.2]} 65... g3+ {[%clk 0:00:07.8]} 66.
Kg1 {[%clk 0:00:04]} 66... Rb1+ {[%clk 0:00:08.3]} 67. Rf1 {[%clk 0:00:04.9]}
67... Rb4 {[%clk 0:00:07.9]} 68. Re1 {[%clk 0:00:04.9]} 68... Kg4 {[%clk
0:00:08.4]} 69. Rd1 {[%clk 0:00:05]} 69... Kf4 {[%clk 0:00:08.7]} 70. Rc1 {[%clk
0:00:05.5]} 70... Rd4 {[%clk 0:00:08.9]} 71. Rf1+ {[%clk 0:00:05.9]} 71... Ke4
{[%clk 0:00:06.8]} 72. Re1+ {[%clk 0:00:05.3]} 72... Kd3 {[%clk 0:00:06.7]} 73.
Kf1 {[%clk 0:00:05.1]} 73... Rf4+ {[%clk 0:00:07.4]} 74. Kg1 {[%clk 0:00:05.3]}
74... Re4 {[%clk 0:00:07.9]} 75. Rd1+ {[%clk 0:00:03.3]} 75... Kc2 {[%clk
0:00:08.1]} 76. Ra1 {[%clk 0:00:01.9]} 76... Rb4 {[%clk 0:00:08.7]} 77. Ra2+
{[%clk 0:00:01.6]} 77... Kd1 {[%clk 0:00:07.2]} 78. Ra3 {[%clk 0:00:02]} 78...
h4 {[%clk 0:00:07]} 79. Rd3+ {[%clk 0:00:01.5]} 79... Ke2 {[%clk 0:00:06.8]} 80.
Rf3 {[%clk 0:00:02.4]} 80... Rb1+ {[%clk 0:00:07.1]} 0-1

[Event "Late-Titled-Tuesday-Blitz-February-13-2024"]
[Site "Chess.com"]
[Date "2024.02.13"]
[Round "2"]
[White "Sl4werThanYou"]
[Black "SantoBlue"]
[Result "1-0"]
[WhiteElo "2641"]
[BlackElo "2959"]
[TimeControl "180+1"]
[EndTime "14:19:50 PST"]
[Termination "Sl4werThanYou won by resignation"]

1. e4 {[%clk 0:02:54.9]} 1... d6 {[%clk 0:02:58.8]} 2. Nc3 {[%clk 0:02:53.5]}
2... Nf6 {[%clk 0:02:57.8]} 3. Nf3 {[%clk 0:02:52.7]} 3... e5 {[%clk 0:02:57]}
4. Bc4 {[%clk 0:02:52.4]} 4... Be7 {[%clk 0:02:56.2]} 5. d3 {[%clk 0:02:51.6]}
5... O-O {[%clk 0:02:55.5]} 6. a4 {[%clk 0:02:50.5]} 6... c6 {[%clk 0:02:55.4]}
7. Ba2 {[%clk 0:02:48.2]} 7... Bg4 {[%clk 0:02:55.6]} 8. h3 {[%clk 0:02:48.7]}
8... Bh5 {[%clk 0:02:55.8]} 9. g4 {[%clk 0:02:48.2]} 9... Bg6 {[%clk 0:02:56.1]}
10. h4 {[%clk 0:02:48.3]} 10... h5 {[%clk 0:02:54.8]} 11. g5 {[%clk 0:02:40.8]}
11... Nfd7 {[%clk 0:02:46.8]} 12. d4 {[%clk 0:02:41.1]} 12... Na6 {[%clk
0:02:37.6]} 13. Be3 {[%clk 0:02:38.7]} 13... Qa5 {[%clk 0:02:35.7]} 14. Qd2
{[%clk 0:02:36.7]} 14... Rfe8 {[%clk 0:02:24.3]} 15. O-O {[%clk 0:02:28.8]}
15... exd4 {[%clk 0:02:23.5]} 16. Bxd4 {[%clk 0:02:27.1]} 16... Ne5 {[%clk
0:02:16.1]} 17. Nxe5 {[%clk 0:02:18.2]} 17... dxe5 {[%clk 0:02:15.9]} 18. Be3
{[%clk 0:02:19.1]} 18... Bb4 {[%clk 0:02:10]} 19. f3 {[%clk 0:02:14.7]} 19...
Rad8 {[%clk 0:02:09.2]} 20. Qe1 {[%clk 0:02:15.5]} 20... Bc5 {[%clk 0:02:07.4]}
21. Bb3 {[%clk 0:02:12]} 21... Qb6 {[%clk 0:02:02.1]} 22. Bf2 {[%clk 0:02:03.2]}
22... Bxf2+ {[%clk 0:01:56.4]} 23. Qxf2 {[%clk 0:02:02.1]} 23... Nc5 {[%clk
0:01:52.6]} 24. a5 {[%clk 0:02:01.3]} 24... Qb4 {[%clk 0:01:52.9]} 25. Na2
{[%clk 0:01:42.6]} 25... Qxa5 {[%clk 0:01:47.6]} 26. Bxf7+ {[%clk 0:01:35.3]}
26... Bxf7 {[%clk 0:01:47.3]} 27. b4 {[%clk 0:01:36.2]} 27... Qa3 {[%clk
0:01:40.8]} 28. bxc5 {[%clk 0:01:30]} 28... Bxa2 {[%clk 0:01:40.3]} 29. c4
{[%clk 0:01:25.4]} 29... Rd4 {[%clk 0:01:37.9]} 30. Rxa2 {[%clk 0:01:24.6]}
30... Qxc5 {[%clk 0:01:38]} 31. Rb1 {[%clk 0:01:20.2]} 31... Re7 {[%clk
0:01:36.2]} 32. Rab2 {[%clk 0:01:18]} 32... b6 {[%clk 0:01:35.2]} 33. Rc2 {[%clk
0:01:18.5]} 33... Rf7 {[%clk 0:01:33]} 34. Kg2 {[%clk 0:01:15.4]} 34... g6
{[%clk 0:01:33.3]} 35. Rbb2 {[%clk 0:01:10.9]} 35... Kg7 {[%clk 0:01:32.2]} 36.
Qe2 {[%clk 0:01:06.9]} 36... a5 {[%clk 0:01:31]} 37. Ra2 {[%clk 0:01:06.8]}
37... Rfd7 {[%clk 0:01:29.2]} 38. Qf2 {[%clk 0:01:01.3]} 38... Rf7 {[%clk
0:01:22.6]} 39. Qe2 {[%clk 0:00:58.2]} 39... Ra7 {[%clk 0:01:22.5]} 40. Ra4
{[%clk 0:00:54.1]} 40... Rad7 {[%clk 0:01:17.6]} 41. Qf2 {[%clk 0:00:52.7]}
41... Ra7 {[%clk 0:01:09.3]} 42. Rb2 {[%clk 0:00:48]} 42... b5 {[%clk 0:01:06]}
43. cxb5 {[%clk 0:00:43.4]} 43... cxb5 {[%clk 0:01:06.9]} 44. Rxb5 {[%clk
0:00:28.6]} 44... Qxb5 {[%clk 0:01:01.1]} 45. Rxd4 {[%clk 0:00:29.1]} 45... Rc7
{[%clk 0:00:38.3]} 46. Rd5 {[%clk 0:00:21.4]} 46... Qb3 {[%clk 0:00:38.5]} 47.
Kg3 {[%clk 0:00:14.7]} 47... Rf7 {[%clk 0:00:33]} 48. Rxa5 {[%clk 0:00:12.2]}
48... Qc3 {[%clk 0:00:27.2]} 49. Rd5 {[%clk 0:00:10.7]} 49... Qa1 {[%clk
0:00:27.6]} 50. Kg2 {[%clk 0:00:10.5]} 50... Rb7 {[%clk 0:00:26.8]} 51. Rd2
{[%clk 0:00:06.9]} 51... Qc3 {[%clk 0:00:27.2]} 52. Rc2 {[%clk 0:00:06.1]} 52...
Qb3 {[%clk 0:00:25.5]} 53. Qe2 {[%clk 0:00:06.1]} 53... Rf7 {[%clk 0:00:24.9]}
54. Rb2 {[%clk 0:00:05.6]} 54... Qa3 {[%clk 0:00:24]} 55. Ra2 {[%clk 0:00:05.2]}
55... Qc3 {[%clk 0:00:23.6]} 56. Rc2 {[%clk 0:00:05.5]} 56... Qb3 {[%clk
0:00:24.1]} 57. Rd2 {[%clk 0:00:05.3]} 57... Qe6 {[%clk 0:00:23.3]} 58. Qd1
{[%clk 0:00:04.1]} 58... Qa6 {[%clk 0:00:20.5]} 59. Rd6 {[%clk 0:00:03.5]} 59...
Qa3 {[%clk 0:00:19.7]} 60. Rd5 {[%clk 0:00:02.5]} 60... Qc3 {[%clk 0:00:15.5]}
61. Rd3 {[%clk 0:00:02.9]} 61... Qb2+ {[%clk 0:00:15.5]} 62. Kg3 {[%clk
0:00:03.4]} 62... Qb8 {[%clk 0:00:13.5]} 63. Rd7 {[%clk 0:00:03.4]} 63... Qb6
{[%clk 0:00:10.5]} 64. Rxf7+ {[%clk 0:00:02.4]} 64... Kxf7 {[%clk 0:00:11.4]}
65. Qd5+ {[%clk 0:00:02.7]} 65... Kf8 {[%clk 0:00:11]} 66. Qxe5 {[%clk
0:00:01.8]} 66... Qg1+ {[%clk 0:00:11.1]} 67. Kh3 {[%clk 0:00:02.6]} 67... Qf1+
{[%clk 0:00:10.7]} 68. Kg3 {[%clk 0:00:03.2]} 68... Qe1+ {[%clk 0:00:11.4]} 69.
Kf4 {[%clk 0:00:02.1]} 69... Qxh4+ {[%clk 0:00:11.1]} 70. Ke3 {[%clk 0:00:02.9]}
70... Qe1+ {[%clk 0:00:11.7]} 71. Kd3 {[%clk 0:00:03.5]} 71... Qd1+ {[%clk
0:00:10.4]} 72. Ke3 {[%clk 0:00:03.8]} 72... Qe1+ {[%clk 0:00:11.1]} 73. Kd4
{[%clk 0:00:03.6]} 73... Qa1+ {[%clk 0:00:11]} 74. Kd5 {[%clk 0:00:04]} 74...
Qxe5+ {[%clk 0:00:06.3]} 75. Kxe5 {[%clk 0:00:04.9]} 75... Ke7 {[%clk 0:00:07]}
76. Kf4 {[%clk 0:00:03.7]} 76... Ke6 {[%clk 0:00:07]} 77. Ke3 {[%clk 0:00:04]}
77... Kd6 {[%clk 0:00:04.2]} 78. f4 {[%clk 0:00:03.9]} 78... Ke6 {[%clk
0:00:04.7]} 79. Kd4 {[%clk 0:00:03.2]} 79... Ke7 {[%clk 0:00:02.9]} 80. Kd3
{[%clk 0:00:03.1]} 80... Kd6 {[%clk 0:00:02.3]} 81. Ke3 {[%clk 0:00:03.4]} 81...
Ke7 {[%clk 0:00:01.5]} 82. Kf3 {[%clk 0:00:04]} 82... Ke6 {[%clk 0:00:02.1]} 83.
Kg3 {[%clk 0:00:04.5]} 83... Kd6 {[%clk 0:00:02.3]} 84. Kh3 {[%clk 0:00:04.4]}
84... Ke7 {[%clk 0:00:02.8]} 85. f5 {[%clk 0:00:02.9]} 85... Kf7 {[%clk
0:00:03.3]} 86. Kh4 {[%clk 0:00:03]} 86... Kg7 {[%clk 0:00:04]} 87. Kg3 {[%clk
0:00:02]} 87... Kf7 {[%clk 0:00:04.2]} 88. Kf4 {[%clk 0:00:02.8]} 88... Ke7
{[%clk 0:00:04.9]} 89. Ke5 {[%clk 0:00:02.8]} 89... Kf7 {[%clk 0:00:05.4]} 90.
f6 {[%clk 0:00:02.4]} 90... Kf8 {[%clk 0:00:05]} 91. Kf4 {[%clk 0:00:02.1]}
91... Kf7 {[%clk 0:00:05.5]} 92. Ke5 {[%clk 0:00:02.4]} 92... Ke8 {[%clk
0:00:05.3]} 93. Kd4 {[%clk 0:00:03.3]} 93... Kd7 {[%clk 0:00:05.2]} 94. e5
{[%clk 0:00:03.5]} 94... Ke6 {[%clk 0:00:05.4]} 95. Ke4 {[%clk 0:00:04.1]} 95...
Kf7 {[%clk 0:00:04.9]} 96. Kd5 {[%clk 0:00:03.4]} 96... Ke8 {[%clk 0:00:05.5]}
97. e6 {[%clk 0:00:03.9]} 97... h4 {[%clk 0:00:06]} 98. Ke4 {[%clk 0:00:04.2]}
1-0